fUSD/lending_fUSD_20250806
["ID","MTS","AMOUNT","RATE_DAILY","PERIOD"]
[377582812,1754448667446,-2209.33,0.00035616,14]
[377582813,1754448667456,-1659.02,0.00035616,14]
[377582814,1754448667465,-400.0,0.00035616,14]
[377582815,1754448667475,-2337.97,0.00035616,14]
[377582816,1754448667484,-2090.44,0.00035616,14]
[377582817,1754448667495,-367.86937283,0.00035616,14]
[377582818,1754448667504,-1513.53,0.00035616,14]
[377582819,1754448667514,-1295.16,0.00035616,14]
[377582820,1754448667524,-401.05535918,0.00035616,14]
[377582821,1754448667533,-1663.17,0.00035616,14]
[377582822,1754448667543,-2361.68,0.00035616,14]
[377582823,1754448667554,-462.51814454,0.00035616,14]
[377582824,1754448667564,-425.69,0.00035616,14]
[377582825,1754448667574,-949.45,0.00035616,14]
[377582826,1754448667584,-400.0,0.00035616,14]
[377582827,1754448667593,-2974.22,0.00035616,14]
[377582828,1754448667603,-365.19684509,0.00035616,14]
[377582829,1754448667612,-468.15,0.00035616,14]
[377582830,1754448667622,-702.26,0.00035616,14]
[377582831,1754448667631,-1198.3,0.00035616,14]
[377582832,1754448667641,-1740.13,0.00035616,14]
[377582833,1754448667650,-2095.59,0.00035616,14]
[377582834,1754448667659,-1148.8,0.00035616,14]
[377582835,1754448667669,-954.12,0.00035616,14]
[377582836,1754448667679,-467.46,0.00035616,14]
[377582837,1754448667689,-2962.89,0.00035616,14]
[377582838,1754448667698,-400.80016708,0.00035616,14]
[377582839,1754448667708,-2021.48,0.00035616,14]
[377582840,1754448667718,-662.22,0.00035616,14]
[377582841,1754448667727,-2546.61,0.00035616,14]
[377582842,1754448667736,-2356.45,0.00035616,14]
[377582843,1754448667750,-402.15454804,0.00035616,10]
[377582844,1754448667760,-500.0,0.00035616,14]
[377582845,1754448667770,-500.0,0.00035616,14]
[377582846,1754448667779,-504.61,0.00035616,14]
[377582847,1754448667789,-500.0,0.00035616,14]
[377582848,1754448667798,-2575.51,0.00035616,14]
[377582849,1754448667808,-400.0,0.00035616,14]
[377582850,1754448667818,-400.0,0.00035616,14]
[377582851,1754448667827,-500.0,0.00035616,14]
[377582852,1754448667839,-500.0,0.00035616,14]
[377582853,1754448667851,-2130.93,0.00035616,14]
[377582854,1754448667862,-400.0,0.00035616,14]
[377582855,1754448667871,-500.0,0.00035616,14]
[377582856,1754448667881,-400.0,0.00035616,14]
[377582857,1754448667892,-423.2,0.00035616,14]
[377582858,1754448667902,-500.0,0.00035616,14]
[377582859,1754448667911,-400.0,0.00035616,14]
[377582860,1754448667920,-500.0,0.00035616,14]
[377582861,1754448667930,-500.0,0.00035616,14]
[377582862,1754448667943,-856.83,0.00035616,14]
[377582863,1754448667952,-500.0,0.00035616,14]
[377582864,1754448667962,-1766.95,0.00035616,14]
[377582865,1754448667972,-400.0,0.00035616,14]
[377582866,1754448667982,-400.0,0.00035616,14]
[377582867,1754448667991,-500.0,0.00035616,14]
[377582868,1754448668003,-500.0,0.00035616,14]
[377582869,1754448668012,-500.0,0.00035616,14]
[377582870,1754448668022,-400.0,0.00035616,14]
[377582871,1754448668032,-3248.58,0.00035616,14]
[377582872,1754448668042,-500.0,0.00035616,14]
[377582873,1754448668052,-5306.84,0.00035616,14]
[377582874,1754448668061,-500.0,0.00035616,14]
[377582875,1754448668071,-500.0,0.00035616,14]
[377582876,1754448668080,-500.0,0.00035616,14]
[377582877,1754448668090,-500.0,0.00035616,14]
[377582878,1754448668099,-500.0,0.00035616,14]
[377582879,1754448668109,-500.0,0.00035616,14]
[377582880,1754448668119,-400.0,0.00035616,14]
[377582881,1754448668128,-400.0,0.00035616,14]
[377582882,1754448668138,-500.0,0.00035616,14]
[377582883,1754448668147,-500.0,0.00035616,14]
[377582884,1754448668158,-400.0,0.00035616,14]
[377582885,1754448668167,-3016.17,0.00035616,14]
[377582886,1754448668176,-496.21,0.00035616,14]
[377582887,1754448668185,-547.97,0.00035616,14]
[377582888,1754448668195,-888.56,0.00035616,14]
[377582889,1754448668204,-727.35,0.00035616,14]
[377582890,1754448668213,-2277.16,0.00035616,14]
[377582891,1754448668223,-2668.39,0.00035616,14]
[377582892,1754448668232,-402.25171738,0.00035616,14]
[377582893,1754448668241,-2277.16,0.00035616,14]
[377582894,1754448668251,-2277.16,0.00035616,14]
[377582895,1754448668260,-2277.16,0.00035616,14]
[377582896,1754448668270,-400.0,0.00035616,14]
[377582897,1754448668279,-2277.16,0.00035616,14]
[377582898,1754448668288,-3791.14,0.00035616,14]
[377582899,1754448668298,-400.0,0.00035616,14]
[377582900,1754448668307,-2277.16,0.00035616,14]
[377582901,1754448668316,-605.14,0.00035616,14]
[377582902,1754448668326,-2054.01,0.00035616,14]
[377582903,1754448668336,-401.05124272,0.00035616,2]
[377582904,1754448668345,-458.13893878,0.00035616,14]
[377582905,1754448668355,-975.71,0.00035616,14]
[377582906,1754448668364,-400.0,0.00035616,14]
[377582907,1754448668374,-400.0,0.00035616,14]
[377582908,1754448668383,-2277.16,0.00035616,14]
[377582909,1754448668393,-400.0,0.00035616,14]
[377582910,1754448668402,-2277.16,0.00035616,14]
[377582911,1754448668411,-2277.16,0.00035616,14]
[377582912,1754448668420,-3485.41,0.00035616,14]
[377582913,1754448668430,-2277.16,0.00035616,14]
[377582914,1754448668439,-2009.81,0.00035616,14]
[377582915,1754448668448,-2277.16,0.00035616,14]
[377582916,1754448668458,-2277.16,0.00035616,14]
[377582917,1754448668467,-2277.16,0.00035616,14]
[377582918,1754448668477,-2179.98,0.00035616,14]
[377582919,1754448668487,-2277.16,0.00035616,14]
[377582920,1754448668497,-2277.16,0.00035616,14]
[377582921,1754448668506,-2277.16,0.00035616,14]
[377582922,1754448668517,-2277.16,0.00035616,14]
[377582923,1754448668527,-2277.16,0.00035616,14]
[377582924,1754448668536,-400.0,0.00035616,14]
[377582925,1754448668546,-2277.16,0.00035616,14]
[377582926,1754448668555,-400.0,0.00035616,14]
[377582927,1754448668565,-400.0,0.00035616,14]
[377582928,1754448668575,-400.0,0.00035616,14]
[377582929,1754448668584,-1920.97,0.00035616,14]
[377582930,1754448668593,-2277.16,0.00035616,14]
[377582931,1754448668602,-2277.16,0.00035616,14]
[377582932,1754448668611,-1517.52,0.00035616,14]
[377582933,1754448668621,-2277.16,0.00035616,14]
[377582934,1754448668630,-1388.31,0.00035616,14]
[377582935,1754448668639,-957.04,0.00035616,14]
[377582936,1754448668649,-2277.16,0.00035616,14]
[377582937,1754448668659,-2277.18816254,0.00035616,14]
[377582938,1754448668668,-400.0,0.00035616,2]
[377582939,1754448668677,-400.0,0.00035616,14]
[377582940,1754448668687,-615.01,0.00035616,14]
[377582941,1754448668696,-2558.14,0.00035616,14]
[377582942,1754448668705,-1537.42,0.00035616,14]
[377582943,1754448668715,-2660.98,0.00035616,14]
[377582944,1754448668724,-1497.84,0.00035616,14]
[377582945,1754448668733,-467.03661765,0.00035616,14]
[377582946,1754448668742,-410.84,0.00035616,14]
[377582947,1754448668753,-1561.14,0.00035616,14]
[377582948,1754448668762,-1672.02,0.00035616,14]
[377582949,1754448668771,-400.0,0.00035616,14]
[377582950,1754448668781,-1718.51,0.00035616,14]
[377582951,1754448668790,-2448.42,0.00035616,14]
[377582952,1754448668800,-2354.23,0.00035616,14]
[377582953,1754448668919,-2817.66,0.00035616,14]
[377582954,1754448668930,-400.0,0.00035616,14]
[377582955,1754448668939,-2286.3,0.00035616,14]
[377582956,1754448668948,-1193.12,0.00035616,14]
[377582957,1754448668957,-818.29,0.00035616,2]
[377582958,1754448668966,-400.0,0.00035616,14]
[377582959,1754448668977,-400.0,0.00035616,14]
[377582960,1754448668986,-151.0,0.00035616,7]
[377582961,1754448668996,-400.0,0.00035616,14]
[377582962,1754448669005,-151.0,0.00035616,7]
[377582963,1754448669014,-400.0,0.00035616,14]
[377582964,1754448669024,-284.268163,0.00035616,7]
[377582965,1754448669033,-2306.54,0.00035616,14]
[377582966,1754448669042,-12433.87,0.00035616,14]
[377582967,1754448669052,-775.18,0.00035616,14]
[377582968,1754448669061,-400.0,0.00035616,14]
[377582969,1754448669071,-751.56,0.00035616,14]
[377582970,1754448669081,-538.31,0.00035616,14]
[377582971,1754448669091,-1789.7,0.00035616,14]
[377582972,1754448669100,-150.30729017,0.00035616,5]
[377582973,1754448669110,-1000.0,0.00035633,7]
[377582974,1754448669120,-151.02516086,0.00035653,2]
[377582975,1754448669131,-150.0,0.00035664,2]
[377582976,1754448669141,-151.0,0.00035673,7]
[377582977,1754448669150,-151.0,0.00035673,7]
[377582978,1754448669159,-151.0,0.00035673,7]
[377582979,1754448669169,-150.0,0.00035683,2]
[377582980,1754448669178,-150.0,0.00035683,2]
[377582981,1754448669187,-150.0,0.00035688,2]
[377582982,1754448669197,-1724.03272625,0.00035692,2]
[377582983,1754448669206,-7880.1,0.000357,9]
[377582984,1754448669216,-150.0,0.00035702,2]
[377582985,1754448669225,-150.0,0.00035715,2]
[377582986,1754448669234,-151.02516086,0.00035721,2]
[377582987,1754448669245,-150.0,0.0003573,2]
[377582988,1754448669254,-200.0,0.0003575,2]
[377582989,1754448669263,-513.0,0.00035764,27]
[377582990,1754448669273,-150.0,0.00035765,2]
[377582991,1754448669282,-150.0,0.0003577,2]
[377582992,1754448669291,-150.0,0.00035788,2]
[377582993,1754448669300,-2110.29130585,0.0003579,2]
[377582994,1754448669309,-158.15980875,0.0003579,8]
[377582995,1754448669319,-1503.05311118,0.0003579,2]
[377582996,1754448669328,-151.02516086,0.0003579,2]
[377582997,1754448669337,-200.0,0.000358,13]
[377582998,1754448669346,-150.0,0.00035805,2]
[377582999,1754448669355,-422.0,0.00035805,30]
[377583000,1754448669365,-150.0,0.0003581,2]
[377583001,1754448669374,-150.0,0.00035818,2]
[377583002,1754448669383,-1000.0,0.0003582,7]
[377583003,1754448669392,-150.0,0.00035823,2]
[377583004,1754448669401,-150.0,0.00035851,2]
[377583005,1754448669410,-151.02516086,0.00035859,2]
[377583006,1754448669423,-1000.0,0.00035861,7]
[377583007,1754448669432,-150.0,0.00035871,2]
[377583008,1754448669442,-1799.69560453,0.0003588,2]
[377583009,1754448669451,-1016.03,0.00035888,14]
[377583010,1754448669460,-500.0,0.00035888,14]
[377583011,1754448669470,-540.73,0.00035888,14]
[377583012,1754448669480,-500.0,0.00035888,14]
[377583013,1754448669489,-771.59,0.00035888,14]
[377583014,1754448669499,-500.0,0.00035888,14]
[377583015,1754448669508,-520.59,0.00035888,14]
[377583016,1754448669518,-611.03044331,0.00035888,14]
[377583017,1754448669528,-500.0,0.00035888,14]
[377583018,1754448669538,-152.056828,0.00035889,7]
[377583019,1754448669547,-1016.03,0.00035889,14]
[377583020,1754448669558,-1016.03,0.00035889,14]
[377583021,1754448669568,-1016.03,0.00035889,14]
[377583022,1754448669577,-1016.03,0.00035889,14]
[377583023,1754448669587,-1016.03,0.00035889,14]
[377583024,1754448669596,-540.73,0.00035889,14]
[377583025,1754448669605,-540.73,0.00035889,14]
[377583026,1754448669614,-540.73,0.00035889,14]
[377583027,1754448669623,-540.73,0.00035889,14]
[377583028,1754448669631,-540.73,0.00035889,14]
[377583029,1754448669641,-500.0,0.00035889,14]
[377583030,1754448669650,-500.0,0.00035889,14]
[377583031,1754448669659,-500.0,0.00035889,14]
[377583032,1754448669668,-500.0,0.00035889,14]
[377583033,1754448669677,-500.0,0.00035889,14]
[377583034,1754448669689,-1377.85,0.00035889,14]
[377583035,1754448669699,-1377.85,0.00035889,14]
[377583036,1754448669709,-1377.85,0.00035889,14]
[377583037,1754448669718,-1377.85,0.00035889,14]
[377583038,1754448669727,-1377.85,0.00035889,14]
[377583039,1754448669737,-1377.85,0.00035889,14]
[377583040,1754448669747,-771.59,0.00035889,14]
[377583041,1754448669756,-771.59,0.00035889,14]
[377583042,1754448669766,-771.59,0.00035889,14]
[377583043,1754448669775,-771.59,0.00035889,14]
[377583044,1754448669785,-771.59,0.00035889,14]
[377583045,1754448669794,-500.0,0.00035889,14]
[377583046,1754448669804,-500.0,0.00035889,14]
[377583047,1754448669813,-500.0,0.00035889,14]
[377583048,1754448669823,-418.84,0.00035889,14]
[377583049,1754448669832,-520.59,0.00035889,14]
[377583050,1754448669842,-520.59,0.00035889,14]
[377583051,1754448669852,-520.59,0.00035889,14]
[377583052,1754448669863,-520.59,0.00035889,14]
[377583053,1754448669872,-520.59,0.00035889,14]
[377583054,1754448669882,-756.79,0.00035889,14]
[377583055,1754448669891,-756.79,0.00035889,14]
[377583056,1754448669903,-756.79,0.00035889,14]
[377583057,1754448669912,-756.79,0.00035889,14]
[377583058,1754448669921,-756.79,0.00035889,14]
[377583059,1754448669930,-756.79,0.00035889,14]
[377583060,1754448669940,-500.0,0.00035889,14]
[377583061,1754448669949,-500.0,0.00035889,14]
[377583062,1754448669958,-500.0,0.00035889,14]
[377583063,1754448669968,-500.0,0.00035889,14]
[377583064,1754448669977,-500.0,0.00035889,14]
[377583065,1754448669987,-6979.73240107,0.0003589,21]
[377583066,1754448669996,-2275.0,0.0003589,14]
[377583067,1754448670006,-155.643466,0.0003589,14]
[377583068,1754448670016,-1106.87216,0.0003589,14]
[377583069,1754448670025,-887.819081,0.0003589,14]
[377583070,1754448670035,-1255.615788,0.0003589,14]
[377583071,1754448670044,-192.679796,0.0003589,14]
[377583072,1754448670054,-1721.73,0.0003589,14]
[377583073,1754448670063,-155.350478,0.0003589,14]
[377583074,1754448670072,-400.0,0.0003589,14]
[377583075,1754448670081,-185.08568638,0.0003589,14]
[377583076,1754448670091,-400.0,0.0003589,14]
[377583077,1754448670100,-400.0,0.0003589,14]
[377583078,1754448670110,-430.46614241,0.0003589,14]
[377583079,1754448670119,-400.0,0.0003589,14]
[377583080,1754448670129,-400.0,0.0003589,14]
[377583081,1754448670138,-400.0,0.0003589,14]
[377583082,1754448670147,-400.0,0.0003589,14]
[377583083,1754448670156,-400.0,0.0003589,14]
[377583084,1754448670165,-208.95020558,0.0003589,14]
[377583085,1754448670174,-400.0,0.0003589,14]
[377583086,1754448670184,-400.86677367,0.0003589,14]
[377583087,1754448670193,-400.0,0.0003589,14]
[377583088,1754448670202,-274.03032165,0.0003589,14]
[377583089,1754448670211,-400.0,0.0003589,14]
[377583090,1754448670221,-400.0,0.0003589,14]
[377583091,1754448670230,-400.0,0.0003589,14]
[377583092,1754448670239,-400.0,0.0003589,14]
[377583093,1754448670248,-400.0,0.0003589,14]
[377583094,1754448670257,-400.0,0.0003589,14]
[377583095,1754448670266,-400.0,0.0003589,14]
[377583096,1754448670275,-400.0,0.0003589,14]
[377583097,1754448670284,-400.0,0.0003589,14]
[377583098,1754448670293,-203.83347808,0.0003589,14]
[377583099,1754448670302,-400.0,0.0003589,14]
[377583100,1754448670311,-400.0,0.0003589,14]
[377583101,1754448670319,-486.23976988,0.0003589,14]
[377583102,1754448670328,-400.0,0.0003589,14]
[377583103,1754448670337,-400.0,0.0003589,14]
[377583104,1754448670346,-400.0,0.0003589,14]
[377583105,1754448670355,-157.802744,0.0003589,7]
[377583106,1754448670364,-400.0,0.0003589,14]
[377583107,1754448670372,-401.03729954,0.0003589,14]
[377583108,1754448670381,-400.0,0.0003589,14]
[377583109,1754448670391,-351.79705418,0.0003589,14]
[377583110,1754448670400,-400.0,0.0003589,14]
[377583111,1754448670409,-400.0,0.0003589,14]
[377583112,1754448670418,-400.0,0.0003589,14]
[377583113,1754448670428,-400.0,0.0003589,14]
[377583114,1754448670438,-400.0,0.0003589,14]
[377583115,1754448670447,-400.0,0.0003589,14]
[377583116,1754448670455,-400.0,0.0003589,14]
[377583117,1754448670464,-155.350478,0.0003589,14]
[377583118,1754448670473,-400.0,0.0003589,14]
[377583119,1754448670482,-400.0,0.0003589,14]
[377583120,1754448670492,-400.0,0.0003589,14]
[377583121,1754448670506,-400.0,0.0003589,14]
[377583122,1754448670515,-400.0,0.0003589,14]
[377583123,1754448670525,-517.54,0.0003589,14]
[377583124,1754448670536,-1879.66,0.0003589,14]
[377583125,1754448670545,-400.0,0.0003589,2]
[377583126,1754448670554,-400.0,0.0003589,14]
[377583127,1754448670563,-400.0,0.0003589,14]
[377583128,1754448670572,-400.0,0.0003589,14]
[377583129,1754448670581,-400.0,0.0003589,14]
[377583130,1754448670591,-933.27,0.0003589,14]
[377583131,1754448670600,-400.0,0.0003589,14]
[377583132,1754448670609,-400.0,0.0003589,14]
[377583133,1754448670619,-400.0,0.0003589,14]
[377583134,1754448670630,-708.86,0.0003589,14]
[377583135,1754448670650,-412.42,0.0003589,14]
[377583136,1754448670666,-400.0,0.0003589,14]
[377583137,1754448670676,-400.0,0.0003589,14]
[377583138,1754448670685,-400.0,0.0003589,14]
[377583139,1754448670694,-400.0,0.0003589,14]
[377583140,1754448670703,-415.77,0.0003589,14]
[377583141,1754448670712,-1925.55,0.0003589,14]
[377583142,1754448670721,-400.0,0.0003589,14]
[377583143,1754448670730,-334.79011894,0.0003589,14]
[377583144,1754448670739,-866.96,0.0003589,14]
[377583145,1754448670749,-523.82,0.0003589,14]
[377583146,1754448670758,-400.0,0.0003589,14]
[377583147,1754448670767,-400.0,0.0003589,14]
[377583148,1754448670776,-400.0,0.0003589,14]
[377583149,1754448670785,-400.0,0.0003589,14]
[377583150,1754448670794,-1993.73,0.0003589,14]
[377583151,1754448670803,-400.0,0.0003589,14]
[377583152,1754448670812,-478.37,0.0003589,14]
[377583153,1754448670822,-1455.59,0.0003589,14]
[377583154,1754448670832,-400.0,0.0003589,14]
[377583155,1754448670841,-1137.51,0.0003589,14]
[377583156,1754448670851,-300.0,0.0003589,14]
[377583157,1754448670862,-400.0,0.0003589,14]
[377583158,1754448670871,-401.37114177,0.0003589,14]
[377583159,1754448670880,-154.21976592,0.0003589,14]
[377583160,1754448670889,-1494.66,0.0003589,14]
[377583161,1754448670899,-2002.12,0.0003589,14]
[377583162,1754448670908,-400.0,0.0003589,14]
[377583163,1754448670918,-400.0,0.0003589,14]
[377583164,1754448670927,-400.0,0.0003589,14]
[377583165,1754448670937,-151.0,0.0003589,7]
[377583166,1754448670946,-1040.39,0.0003589,14]
[377583167,1754448670956,-163.703054,0.0003589,7]
[377583168,1754448670965,-400.0,0.0003589,14]
[377583169,1754448670975,-400.0,0.0003589,14]
[377583170,1754448670985,-400.0,0.0003589,14]
[377583171,1754448670995,-400.0,0.0003589,14]
[377583172,1754448671004,-662.16,0.0003589,14]
[377583173,1754448671013,-400.79367499,0.0003589,14]
[377583174,1754448671023,-400.0,0.0003589,14]
[377583175,1754448671032,-400.0,0.0003589,14]
[377583176,1754448671041,-151.0,0.0003589,7]
[377583177,1754448671050,-151.0,0.0003589,7]
[377583178,1754448671060,-400.0,0.0003589,14]
[377583179,1754448671069,-400.0,0.0003589,14]
[377583180,1754448671078,-2153.57,0.0003589,14]
[377583181,1754448671087,-400.0,0.0003589,14]
[377583182,1754448671096,-1355.9,0.0003589,14]
[377583183,1754448671106,-400.0,0.0003589,14]
[377583184,1754448671116,-904.68,0.0003589,14]
[377583185,1754448671125,-400.0,0.0003589,14]
[377583186,1754448671135,-545.31,0.0003589,14]
[377583187,1754448671144,-400.0,0.0003589,14]
[377583188,1754448671153,-400.0,0.0003589,14]
[377583189,1754448671162,-400.0,0.0003589,14]
[377583190,1754448671172,-400.0,0.0003589,14]
[377583191,1754448671181,-400.0,0.0003589,14]
[377583192,1754448671190,-726.19,0.0003589,14]
[377583193,1754448671199,-400.0,0.0003589,14]
[377583194,1754448671208,-1848.23,0.0003589,14]
[377583195,1754448671217,-400.0,0.0003589,14]
[377583196,1754448671226,-400.0,0.0003589,14]
[377583197,1754448671235,-837.58,0.0003589,14]
[377583198,1754448671244,-400.0,0.0003589,14]
[377583199,1754448671253,-400.0,0.0003589,14]
[377583200,1754448671264,-426.53,0.0003589,14]
[377583201,1754448671274,-2053.66,0.0003589,14]
[377583202,1754448671283,-400.0,0.0003589,14]
[377583203,1754448671292,-463.84,0.0003589,14]
[377583204,1754448671301,-1680.73,0.0003589,14]
[377583205,1754448671311,-400.0,0.0003589,14]
[377583206,1754448671320,-400.0,0.0003589,14]
[377583207,1754448671330,-589.79,0.0003589,14]
[377583208,1754448671339,-400.0,0.0003589,14]
[377583209,1754448671349,-400.0,0.0003589,14]
[377583210,1754448671357,-151.131925,0.0003589,5]
[377583211,1754448671367,-400.0,0.0003589,5]
[377583212,1754448671376,-485.82,0.0003589,14]
[377583213,1754448671385,-407.41982844,0.0003589,14]
[377583214,1754448671396,-151.0,0.0003589,7]
[377583215,1754448671405,-1174.99,0.0003589,14]
[377583216,1754448671415,-1560.83,0.0003589,14]
[377583217,1754448671424,-1343.09,0.0003589,14]
[377583218,1754448671434,-151.0,0.0003589,7]
[377583219,1754448671443,-151.0,0.0003589,7]
[377583220,1754448671454,-400.0,0.0003589,14]
[377583221,1754448671463,-400.0,0.0003589,14]
[377583222,1754448671472,-400.0,0.0003589,14]
[377583223,1754448671482,-400.0,0.0003589,14]
[377583224,1754448671491,-400.0,0.0003589,14]
[377583225,1754448671500,-400.0,0.0003589,14]
[377583226,1754448671509,-400.0,0.0003589,14]
[377583227,1754448671519,-652.79,0.0003589,14]
[377583228,1754448671528,-400.0,0.0003589,14]
[377583229,1754448671538,-807.49,0.0003589,14]
[377583230,1754448671547,-2272.01,0.0003589,14]
[377583231,1754448671557,-439.11,0.0003589,14]
[377583232,1754448671566,-151.0,0.0003589,7]
[377583233,1754448671575,-400.0,0.0003589,14]
[377583234,1754448671584,-400.0,0.0003589,14]
[377583235,1754448671594,-1269.54,0.0003589,14]
[377583236,1754448671604,-152.270092,0.0003589,7]
[377583237,1754448671613,-400.0,0.0003589,14]
[377583238,1754448671622,-400.0,0.0003589,14]
[377583239,1754448671631,-1601.77,0.0003589,14]
[377583240,1754448671640,-151.0,0.0003589,7]
[377583241,1754448671650,-400.0,0.0003589,14]
[377583242,1754448671659,-549.88,0.0003589,14]
[377583243,1754448671668,-691.52,0.0003589,14]
[377583244,1754448671677,-400.0,0.0003589,14]
[377583245,1754448671686,-400.0,0.0003589,14]
[377583246,1754448671696,-400.0,0.0003589,14]
[377583247,1754448671704,-937.63,0.0003589,14]
[377583248,1754448671713,-1238.53,0.0003589,14]
[377583249,1754448671722,-758.93,0.0003589,14]
[377583250,1754448671732,-842.35,0.0003589,14]
[377583251,1754448671741,-400.0,0.0003589,14]
[377583252,1754448671750,-1051.66,0.0003589,14]
[377583253,1754448671760,-566.9,0.0003589,14]
[377583254,1754448671769,-1884.93,0.0003589,14]
[377583255,1754448671778,-1133.77,0.0003589,14]
[377583256,1754448671787,-400.0,0.0003589,14]
[377583257,1754448671796,-1135.75,0.0003589,14]
[377583258,1754448671805,-400.0,0.0003589,14]
[377583259,1754448671815,-1340.96,0.0003589,14]
[377583260,1754448671824,-400.0,0.0003589,14]
[377583261,1754448671833,-400.0,0.0003589,14]
[377583262,1754448671842,-1269.95,0.0003589,14]
[377583263,1754448671856,-1245.02,0.0003589,14]
[377583264,1754448671865,-400.0,0.0003589,14]
[377583265,1754448671874,-400.0,0.0003589,14]
[377583266,1754448671884,-400.0,0.0003589,14]
[377583267,1754448671894,-400.96,0.0003589,14]
[377583268,1754448671903,-888.4,0.0003589,14]
[377583269,1754448671912,-400.0,0.0003589,14]
[377583270,1754448671922,-1391.51,0.0003589,14]
[377583271,1754448671931,-885.84,0.0003589,14]
[377583272,1754448671940,-400.0,0.0003589,14]
[377583273,1754448671950,-400.0,0.0003589,14]
[377583274,1754448671960,-2022.35,0.0003589,14]
[377583275,1754448671969,-400.0,0.0003589,14]
[377583276,1754448671978,-1485.63,0.0003589,14]
[377583277,1754448671987,-577.94,0.0003589,14]
[377583278,1754448671996,-2205.6,0.0003589,14]
[377583279,1754448672006,-400.0,0.0003589,14]
[377583280,1754448672016,-400.0,0.0003589,14]
[377583281,1754448672025,-594.52,0.0003589,14]
[377583282,1754448672034,-400.0,0.0003589,14]
[377583283,1754448672047,-516.69,0.0003589,14]
[377583284,1754448672057,-151.0,0.0003589,7]
[377583285,1754448672066,-206.209934,0.0003589,7]
[377583286,1754448672075,-400.0,0.0003589,14]
[377583287,1754448672084,-400.99,0.0003589,14]
[377583288,1754448672093,-400.0,0.0003589,14]
[377583289,1754448672102,-400.0,0.0003589,14]
[377583290,1754448672112,-400.0,0.0003589,14]
[377583291,1754448672122,-963.31,0.0003589,14]
[377583292,1754448672131,-400.0,0.0003589,14]
[377583293,1754448672141,-400.0,0.0003589,14]
[377583294,1754448672150,-798.43,0.0003589,14]
[377583295,1754448672160,-400.0,0.0003589,14]
[377583296,1754448672169,-400.0,0.0003589,14]
[377583297,1754448672179,-400.0,0.0003589,14]
[377583298,1754448672189,-400.0,0.0003589,14]
[377583299,1754448672198,-825.61,0.0003589,14]
[377583300,1754448672208,-400.0,0.0003589,14]
[377583301,1754448672217,-400.0,0.0003589,14]
[377583302,1754448672226,-400.0,0.0003589,14]
[377583303,1754448672235,-400.0,0.0003589,14]
[377583304,1754448672244,-425.14,0.0003589,14]
[377583305,1754448672254,-1955.89,0.0003589,14]
[377583306,1754448672263,-400.0,0.0003589,14]
[377583307,1754448672272,-400.0,0.0003589,14]
[377583308,1754448672282,-872.75,0.0003589,14]
[377583309,1754448672291,-672.46,0.0003589,14]
[377583310,1754448672301,-666.07,0.0003589,14]
[377583311,1754448672311,-400.0,0.0003589,7]